{"text_format":"1","workbook":"xlsx","n_sheets":2,"sheets":["Tabelão","Compras"],"not_rendered":{"charts":0,"images":0,"macros":1,"external_links":0,"defined_names":3,"comments":0,"pivot_tables":0},"unopened":[],"bounds":{"document_bytes":16777216,"sheet_cells":100000,"rows_first":2000,"rows_last":500,"rows_between":2000,"halvings":0,"cell_chars":16384,"cell_head_chars":4096},"cells_cut":0,"cells_raw":0,"read":"whole","date_system":"1900"}

{"sheet":"Tabelão","index":0,"n_rows":300,"n_cols":8,"rows_kept":300,"cut":false,"hidden":false,"merged":[[0,0,0,1],[0,2,0,4],[1,0,1,4],[289,2,289,4]]}
["LISTA DE MERCADO",null,"Quantidade",null,null,null,0,"GRUPO"]
[null,null,null,null,null,null,2,"BEBIDAS"]
["Produto","Total","Mãe","Ieia","Tata",null,3,"CEREAIS"]
["BEBIDAS",1,0,0,0,null,4,"MASSAS"]
["Gatorade",{"$f":"SUM(C5:E5)","v":0},null,null,null,null,5,"ENLATADOS"]
["Água sem gas fardo",0,null,null,null,null,6,"TEMPEROS"]
["Água com Gás fardo",0,null,null,null,null,7,"ESPECIARIAS"]
["Cerveja",0,null,null,null,null,8,"DERIVADOS DO LEITE"]
["Refrigerante",0,null,null,null,null,9,"DERIVADOS DO CAFÉ"]
["Adess Caixa",0,null,null,null,null,10,"DERIVADOS DE CACAU"]
["Adess pequeno",0,null,null,null,null,11,"GULOSEIMAS"]
["Vinho branco ",0,null,null,null,null,12,"HIGIENE PESSOAL"]
["Vinho tinto",0,null,null,null,null,13,"COZINHA/BANHEIRO"]
["Vinho Porto",0,null,null,null,null,14,"LIMPEZA"]
["Cachaça Seleta/Salinas",0,null,null,null,null,15,"LATICÍNIOS/EMBUTIDOS"]
["Vodka",0,null,null,null,null,16,"BEBIDAS LACTEAS"]
["Cognac",0,null,null,null,null,17,"CARNES"]
["Suco de Uva",0,null,null,null,null,18,"DIVERSOS"]
["Suco de Caju",0,null,null,null,null,19,"OBSERVAÇÕES"]
[null,0]
[null,0]
["CEREAIS",1]
["Arroz pcte  5k ",0]
["Feijão",0]
["Farinha de Trigo pcte 1k",0]
["Açúcar ",0]
["Farinha de Milho ",0]
["Trigo para Kibe",0]
["Fubá",0]
["Lentilha",0]
["Ervilha Partida",0]
["Fermento em pó",0]
["Fermento biológico",0]
["Maizena",0]
["Cuscus Marroquino",0]
["Quinoa",0]
["Milho para pipoca",0]
[null,0]
[null,0]
[null,0]
[null,0]
["MASSAS",1]
["Macarrão Spagheti",0]
["Macarrão Talharini",0]
["Macarrão Parafuso",0]
["Macarrão Penne",0]
["Macarrão Farfale",0]
["Cabelinho de Anjo",0]
["Macarrão Sopa",0]
["Macarrão Yakissoba",0]
["Massa Lazanha",0]
["Miojo",0]
[null,0]
[null,0]
[null,0]
[null,0]
[null,0]
["ENLATADOS",1]
["Palmito picado",0]
["Palmito inteiro",0]
["Aspargo",0]
["Champignon",0]
["Milho Verde",0]
["Ervilha",0]
["Salsicha",0]
["Sardinha/Filé",0]
["Atum",0]
["Azeitona Verde",0]
["Azeitona Verde Fatiada",0]
["Azeitona Preta Fatiada",0]
["Azeitona Preta",0]
["Extrato de Tomate",0]
["Tomate pelado",{"$f":"SUM(C73:E73)","v":0}]
["Alcaparra",0]
[null,0]
[null,0]
[null,0]
[null,0]
["TEMPEROS",1]
["Sal",0]
["Sal Grosso",0]
["Aji-no-moto",0]
["Shoyo",0]
["Molho Barbecue",0]
["Molho Inglês",0]
["Molho de Alho",0]
["Mostarda",0]
["Maionese",0]
["Cathup",0]
["Vinagre",0]
["Óleo ",0]
["Azeite",0]
["Azeite de Dendê",0]
["Melado de Cana",0]
["Manteiga de garrafa",0]
[null,0]
[null,0]
[null,0]
[null,0]
[null,0]
["ESPECIARIAS",1]
["Gengibre",0]
["Noz Mosada",0]
["Orégano",0]
["Pimenta",0]
["Molho de Pimenta",0]
["Páprica",0]
["Açafrão",0]
["Canela em pó ",0]
["Canela em pau",0]
["Cravo da Índia",0]
["Baunilha",0]
["Chá de Camomila",0]
["Chá de Erva Doce",0]
["Chá de Erva Cidreira",0]
["Chá de Hortelã",0]
[null,0]
[null,0]
["DERIVADOS DO LEITE",1]
["Leite em pó",0]
["Creme de Leite",0]
["Leite Condensado",0]
["Leite de Coco",0]
["Coco Ralado",0]
["Leite",0]
[null,0]
[null,0]
[null,0]
[null,0]
[null,0]
[null,0]
[null,0]
[null,0]
["DERIVADOS DO CAFÉ",1]
["Pó de Café",0]
["Café em Sachê",0]
["Capuccino",0]
["Coador de Café",0]
["Adoçante",0]
["Chococcino",0]
[null,{"$f":"SUM(C141:E141)","v":0}]
[null,0]
[null,0]
[null,0]
[null,0]
["DERIVADOS DE CACAU",1]
["Chocolate em pó",0]
["Achocolatado",0]
["Chocolate Granulado",0]
["Gelatinas",0]
["Maria Mole",0]
[null,0]
[null,0]
["GULOSEIMAS",0]
["chocolate twix/bis",0]
["salgadinhos/Rufles",0]
["bolacha (bono/chocolícia)",0]
[null,0]
[null,0]
["HIGIENE PESSOAL",1]
["Pasta de Dente",0]
["Sabonete",0]
["Desodorante pai",0]
["Desodorante Feminino",0]
["Shampoo",0]
["Condicionador",0]
["Cotonete",0]
["Absorvente",0]
["Absorvente Carefree",0]
["Escova de dente ",0]
["Algodão",0]
["Sabonete líquido mãos",0]
["Toalhinha Higiênica",0]
["Lenço de Papel",0]
[null,0]
[null,0]
[null,0]
["COZINHA/BANHEIRO",1]
["Papel toalha ",0]
["Guardanapo",0]
["Papel Alumínio",0]
["Papel Manteiga",0]
["Filme Plástico",0]
["Saco Freezer 3 litros",0]
["Assa Fácil",0]
["Palito de Dente",0]
["Papel Higiênico fardo",0]
["Quentinha",0]
["Saco de lixo Banheiro/Pia",0]
["Saco de Lixo Normal 30 l.",0]
["Fósforo",0]
["Vela ",0]
["Palito de churrasco",0]
[null,0]
[null,0]
[null,0]
[null,0]
[null,0]
["LIMPEZA",1]
["Álcool liquido",0]
["Limpa vidros",0]
["Detergente",0]
["Multi Uso",0]
["Desinfetante 2 (Lts)",0]
["Cândida 2 (Lts)",0]
["Sabão em Pedra",0]
["Sabão em Pó",0]
["Sabão Líquido",0]
["Vanish",{"$f":"SUM(C209:E209)","v":0}]
["Vanish Pedra",0]
["Amaciante 2 (Lts)",0]
["Sapólio Líquido",0]
["Air wick refil",0]
["Glade avião",0]
["Inseticida",0]
["Bom bril",0]
["Esponja",0]
["Palha de Aço Fabio",0]
["Acendedor alcool gel",0]
["Cheirinho p/ limpeza",0]
["Sabão de Coco Líquido",0]
["Escovinha de limpeza",0]
["Diabo Verde",0]
["Toalhinha Umedecida",0]
["Koala",0]
[null,0]
[null,0]
[null,0]
[null,0]
[null,0]
["LATICÍNIOS/EMBUTIDOS",1]
["Manteiga",0]
["Requeijão",0]
["Mussarela bufala",0]
["Queijos variados",0]
["Queijo parmesão",0]
["Bacon fatiado/pedaço",0]
["Linguiça Calabresa",0]
["Paio",0]
["Linguiça churrasco",0]
["Rap 10",0]
["Massa de Pastel - forno",0]
["Pão de Forma Integral",0]
["Cream cheese",0]
["Nata",0]
["Pizza coquetel",0]
["Pão de Queijo",0]
[null,0]
[null,0]
[null,0]
[null,0]
[null,0]
["BEBIDAS LACTEAS",1]
["Yakult",0]
["Taffman-E ",0]
["Sorvete Creme",0]
["Iogurte morango e coco",0]
["Iogurte natural",0]
["Chantily",0]
[null,0]
[null,0]
[null,0]
[null,0]
[null,0]
["CARNES",1]
["Peito Inteiro",0]
["Filé de peito",0]
["Sobrecoxa",0]
["Meio da Asa",0]
["Coxinha da Asa",0]
["Costelinha",0]
["Bistequinha ",0]
["Hamburguer Suíno",0]
["Filé Mignon",0]
["Bacalhau Posta",0]
["Bacalhau Lombo",{"$f":"SUM(C276:E276)","v":0}]
[null,0]
[null,0]
[null,0]
["DIVERSOS",1]
["Azeitona Chilena",0]
["Azeitona Portuguesa",0]
["Ovos vermelho",0]
["Hipoclorito",0]
[null,0]
[null,0]
[null,0]
[null,0]
[null,0]
["OBSERVAÇÕES",1]
[]
[]
[]
[]
[]
[]
[]
[]
[]
[null,null,0,0,0]

{"sheet":"Compras","index":1,"n_rows":20,"n_cols":5,"rows_kept":20,"cut":false,"hidden":false,"merged":[[0,0,0,4],[1,1,1,4]]}
["LISTA DE MERCADO"]
["Produto","Quantidade"]
[null,"Total","Mae","Ieia","Tata"]
[{"$f":"_xlfn._xlws.FILTER(Tabelão!$A$4:$E$300,Tabelão!$B$4:$B$300<>Tabelão!$G$1)","v":"BEBIDAS"},1,0,0,0]
["CEREAIS",1,0,0,0]
["MASSAS",1,0,0,0]
["ENLATADOS",1,0,0,0]
["TEMPEROS",1,0,0,0]
["ESPECIARIAS",1,0,0,0]
["DERIVADOS DO LEITE",1,0,0,0]
["DERIVADOS DO CAFÉ",1,0,0,0]
["DERIVADOS DE CACAU",1,0,0,0]
["HIGIENE PESSOAL",1,0,0,0]
["COZINHA/BANHEIRO",1,0,0,0]
["LIMPEZA",1,0,0,0]
["LATICÍNIOS/EMBUTIDOS",1,0,0,0]
["BEBIDAS LACTEAS",1,0,0,0]
["CARNES",1,0,0,0]
["DIVERSOS",1,0,0,0]
["OBSERVAÇÕES",1,0,0,0]